bitfinex/quotes_ETHUSD_20220202
["timestamp","ask_amount","ask_price","bid_price","bid_amount"]
[1643845269216,0.42759592,2689.5,2688.5,1.85931]
[1643845269412,8.49322942,2689.6,2688.5,1.85931]
[1643845269611,1.5752774,2689.5,2688.5,1.85931]
[1643845270015,2.36694483,2689.4,2688.5,1.85931]
[1643845270211,0.83976522,2689.0,2688.5,1.85931]
[1643845270410,0.83976522,2689.0,2688.5,2.15931]
[1643845272665,0.1859,2689.4,2688.5,2.15931]
[1643845272860,1.57580614,2689.3,2688.5,2.15931]
[1643845273261,0.0028106,2688.9,2688.5,2.15931]
[1643845274061,0.0028106,2688.9,2688.3,1.85944]
[1643845274266,0.0028106,2688.9,2687.7,0.13819997]
[1643845274463,0.0028106,2688.9,2687.2,2.51235377]
[1643845274464,0.43276324,2688.6,2687.2,0.00191417]
[1643845274668,0.70000832,2687.8,2687.0,0.93617473]
[1643845274861,12.44626344,2688.5,2687.0,0.93617473]
[1643845274862,10.87042351,2688.5,2687.0,0.93617473]
[1643845275322,1.57622496,2688.4,2687.4,1.86003]
[1643845276120,0.92021823,2688.1,2687.6,0.93005]
[1643845276420,0.92021823,2688.1,2687.6,1.23005]
[1643845277621,0.92021823,2688.1,2687.6,0.3]
[1643845277826,0.92021823,2688.1,2687.4,0.3]
[1643845278121,0.92021823,2688.1,2687.2,0.00191417]
[1643845278122,1.22021823,2688.1,2687.2,0.00191417]
[1643845278321,1.22021823,2688.1,2686.8,0.01475015]
[1643845278322,1.76234381,2688.0,2686.8,0.01475015]
[1643845278521,0.8727134,2687.1,2686.8,0.01475015]
[1643845278724,0.8727134,2687.1,2686.8,0.00191417]
[1643845278964,0.186,2687.6,2686.7,0.01]
[1643845279165,0.18598,2687.5,2686.7,0.01]
[1643845279368,0.22708329,2687.7,2686.7,0.01]
[1643845279369,0.186,2687.4,2686.7,0.01]
[1643845279564,0.186,2687.6,2686.8,0.93034]
[1643845280167,0.186,2687.6,2686.9,0.00191417]
[1643845281065,0.86911274,2687.3,2686.9,0.00191417]
[1643845281266,0.86911274,2687.3,2686.8,1.23034]
[1643845282067,0.186,2687.8,2686.8,1.23034]
[1643845282268,0.186,2687.8,2686.9,1.86231417]
[1643845282467,1.139,2687.9,2686.9,1.86231417]
[1643845282722,0.18598,2688.3,2686.9,1.86231417]
[1643845282723,0.186,2688.2,2686.9,1.86231417]
[1643845283314,0.92332618,2687.9,2687.1,0.69572761]
[1643845283515,0.92332618,2687.9,2687.3,0.9301]
[1643845284016,0.186,2688.3,2687.3,1.2301]
[1643845284215,1.57636099,2688.2,2687.3,0.3]
[1643845284414,0.186,2688.1,2687.3,0.3]
[1643845284814,1.2471,2688.4,2687.3,0.3]
[1643845284815,0.77315465,2688.2,2687.3,0.72363905]
[1643845285015,0.148948,2688.2,2687.6,0.78527206]
[1643845285218,0.148949,2688.4,2687.7,0.8368917]
[1643845285417,1.94387812,2689.5,2687.7,0.8368917]
[1643845285418,0.186,2689.2,2687.9,0.3]
[1643845285621,0.70872895,2689.6,2688.2,3.0]
[1643845285622,4.9492,2689.5,2688.2,3.0]
[1643845285817,1.57579053,2689.4,2688.3,0.32783994]
[1643845286016,1.57579053,2689.3,2689.1,1.16893342]
[1643845286317,0.00275083,2689.8,2689.2,0.8878278]
[1643845286569,0.00275083,2689.8,2689.3,0.3]
[1643845286570,1.57548382,2689.8,2689.3,0.3]
[1643845286867,0.00275083,2690.0,2689.4,0.05144]
[1643845287065,0.00275083,2690.4,2689.4,0.05144]
[1643845287269,0.00275083,2690.4,2689.5,0.8362242]
[1643845287467,2.51635353,2690.4,2689.4,2.78767]
[1643845287671,2.51635353,2690.4,2689.2,0.3]
[1643845287672,0.01291573,2690.3,2689.2,0.3]
[1643845287866,2.47991263,2690.3,2689.1,0.3]
[1643845288065,0.00275083,2690.2,2689.0,0.05144]
[1643845288270,0.1859,2690.1,2689.0,0.05144]
[1643845288467,0.1859,2690.1,2689.5,1.85658157]
[1643845288667,1.57806961,2690.0,2689.5,2.15658157]
[1643845289070,1.57531878,2689.9,2689.5,2.15658157]
[1643845289268,1.57531878,2690.0,2689.5,0.92945]
[1643845289468,1.57531878,2689.9,2689.5,0.92945]
[1643845289668,1.76101878,2689.9,2689.2,0.92955]
[1643845289868,1.57806961,2689.8,2689.2,0.92955]
[1643845290316,2.42105704,2689.8,2689.2,0.92955]
[1643845290516,1.57531878,2689.7,2689.0,1.85908]
[1643845290717,0.00275083,2689.6,2689.0,2.15908]
[1643845290926,0.70597812,2689.5,2688.3,0.27639994]
[1643845291117,0.70597812,2689.5,2688.3,1.20621994]
[1643845291118,5.66331892,2689.4,2688.3,1.20621994]
[1643845291317,1.76121878,2689.3,2688.3,1.20621994]
[1643845291518,1.57531878,2689.2,2688.3,1.20621994]
[1643845291817,2.28581879,2689.2,2688.4,0.70746571]
[1643845292017,1.57531878,2689.1,2688.4,0.70746571]
[1643845292219,1.57531878,2689.1,2688.4,1.00746571]
[1643845292418,3.92050329,2689.1,2688.3,0.92982]
[1643845292624,3.92050329,2689.1,2687.7,1.85986]
[1643845292625,2.20821878,2689.0,2687.7,1.85986]
[1643845292821,5.88811855,2688.9,2687.7,1.85986]
[1643845293020,3.1001769,2688.8,2687.7,1.85986]
[1643845293219,2.67536534,2688.7,2687.7,1.85986]
[1643845293425,0.77681698,2688.2,2687.7,1.85986]
[1643845293826,1.57623452,2688.1,2687.7,1.85986]
[1643845294481,1.57623452,2688.1,2687.7,2.15986]
[1643845294683,4.7366,2688.4,2687.7,2.15986]
[1643845294883,4.7366,2688.4,2687.9,0.92994]
[1643845295284,4.7366,2688.4,2687.9,1.22994]
[1643845295681,5.5419827,2688.4,2687.9,1.22994]
[1643845295881,4.7366,2688.4,2687.9,1.22994]
[1643845296484,4.885514,2688.4,2687.9,1.22994]
[1643845297082,4.885514,2688.4,2688.1,0.71769838]
[1643845297284,4.885514,2688.4,2688.2,0.92982]
[1643845297917,0.148914,2688.4,2688.2,0.92982]
[1643845298314,0.00369939,2688.3,2688.2,0.92982]
[1643845298721,0.00369939,2688.3,2688.2,1.3430144]
[1643845299115,0.00369939,2688.3,2688.2,1.8414544]
[1643845299516,4.4926,2689.1,2688.4,1.8594]
[1643845299517,2.33387022,2689.0,2688.4,1.8594]
[1643845299714,4.4926,2689.1,2688.4,2.1594]
[1643845299913,4.4926,2689.1,2688.6,0.9298]
[1643845300318,5.2759826,2689.0,2688.4,1.4081519]
[1643845300513,5.4618826,2689.0,2688.4,1.4081519]
[1643845300913,1.5759826,2688.9,2688.4,1.4081519]
[1643845301571,7.56223055,2688.8,2688.2,1.85991]
[1643845301770,1.5759826,2688.7,2688.2,1.85991]
[1643845301967,2.56556804,2688.6,2687.4,0.9301]
[1643845302172,1.5759826,2688.5,2687.4,0.9301]
[1643845302366,1.5759826,2688.5,2687.1,3.71879]
[1643845302367,0.186,2688.4,2687.1,3.71879]
[1643845302567,0.95264883,2688.0,2687.3,0.79683393]
[1643845302765,0.95264883,2688.0,2687.8,1.86018]
[1643845303170,2.60988702,2688.4,2687.8,1.86018]
[1643845303372,1.57627281,2688.3,2687.8,1.86018]
[1643845304172,0.74949337,2688.2,2687.8,1.86018]
[1643845304373,1.57627281,2688.1,2687.8,1.86018]
[1643845304577,3.18598,2687.9,2687.2,0.00191417]
[1643845304774,4.02327281,2687.8,2687.0,0.00191417]
[1643845304972,1.57627281,2687.7,2687.0,0.00191417]
[1643845305218,1.57627281,2687.7,2686.1,0.8374497]
[1643845305219,1.11898,2687.6,2686.1,0.8374497]
[1643845305421,0.81960574,2687.0,2686.2,0.94679953]
[1643845305619,3.92418,2687.4,2686.5,0.93049]
[1643845305818,4.22418,2687.4,2686.5,0.93049]
[1643845306018,3.92418,2687.4,2686.5,0.93049]
[1643845306218,3.5522,2687.4,2686.5,0.93049]
[1643845306419,3.5522,2687.4,2686.6,0.00191417]
[1643845306622,3.5522,2687.4,2686.9,1.06686608]
[1643845306818,3.5522,2687.4,2686.9,1.36686608]
[1643845306819,0.148969,2687.4,2686.9,1.36686608]
[1643845307217,4.5355,2687.8,2686.9,1.36686608]
[1643845307418,1.57666573,2687.7,2686.9,1.36686608]
[1643845307617,0.79482948,2687.7,2687.0,0.00191417]
[1643845310067,1.57670147,2687.6,2687.0,0.00191417]
[1643845310768,0.148965,2687.7,2687.1,0.05144]
[1643845310969,0.186,2688.3,2687.6,0.01203091]
[1643845311174,0.186,2688.5,2687.6,1.92338091]
[1643845311369,0.186,2688.5,2687.6,2.22338091]
[1643845311566,1.57625038,2688.4,2687.8,0.92996]
[1643845311772,1.57625038,2688.3,2687.6,2.15991]
[1643845311968,4.3629,2688.6,2687.6,2.15991]
[1643845312169,1.57624637,2688.5,2687.6,2.15991]
[1643845312821,1.57624637,2688.5,2687.6,2.59569521]
[1643845313022,1.57624637,2688.5,2687.6,3.33965001]
[1643845313321,1.57624637,2688.5,2687.8,0.93003]
[1643845314521,1.72516637,2688.5,2687.8,0.93003]
[1643845314722,1.57624637,2688.4,2687.8,0.93003]
[1643845315523,1.57624637,2688.3,2687.8,0.93003]
[1643845315731,1.57624637,2688.3,2687.4,1.0]
[1643845315732,5.2,2688.1,2686.8,4.47033802]
[1643845315929,5.2,2688.1,2686.5,0.005]
[1643845315930,0.01258532,2687.6,2686.5,0.005]
[1643845316128,0.01236287,2687.0,2686.3,0.005]
[1643845316575,0.33067454,2686.7,2686.3,0.005]
[1643845316775,0.71440308,2686.8,2685.9,0.005]
[1643845316985,0.186,2686.6,2685.9,0.005]
[1643845317178,1.76309224,2686.5,2685.9,0.005]
[1643845317375,1.57711224,2686.4,2685.8,0.29818126]
[1643845317677,2.8,2686.2,2685.4,7.6376]
[1643845317876,0.33019151,2685.5,2685.4,6.70565352]
[1643845318076,0.33019151,2685.5,2685.4,5.45016463]
[1643845318274,0.33019151,2685.5,2685.4,4.4905729]
[1643845318875,4.72157865,2685.5,2685.4,1.74453663]
[1643845319076,4.72157865,2685.5,2685.4,3.663e-05]
[1643845319077,6.66452577,2685.5,2685.4,3.663e-05]
[1643845319277,7.85050577,2685.5,2685.4,3.663e-05]
[1643845319480,9.4282545,2685.5,2685.4,3.663e-05]
[1643845320217,4.05,2685.4,2683.9,0.05005]
[1643845320421,0.1862,2685.4,2684.3,3.0]
[1643845320623,4.4217516,2685.6,2684.3,3.0]
[1643845320624,4.409,2685.6,2684.3,0.01237053]
[1643845321413,4.409,2685.6,2684.6,1.26368944]
[1643845321812,4.409,2685.6,2684.6,1.56368944]
[1643845322016,4.409,2685.6,2684.9,0.93096]
[1643845322216,4.409,2685.6,2684.0,0.04035807]
[1643845322217,0.4862,2685.5,2684.0,0.04035807]
[1643845322415,0.01249484,2685.3,2684.0,0.04035807]
[1643845322613,0.1862,2685.2,2684.0,0.04035807]
[1643845323014,0.01262896,2684.7,2684.0,0.04035807]
[1643845323617,0.6332,2684.6,2684.0,0.04035807]
[1643845323815,0.18598,2684.5,2684.0,0.04035807]
[1643845324063,0.18598,2684.5,2682.7,0.005]
[1643845324064,5.2,2684.3,2682.7,0.005]
[1643845324267,5.018,2684.2,2682.7,0.005]
[1643845324472,5.2,2683.9,2682.7,0.005]
[1643845324671,0.9332,2683.8,2682.7,0.005]
[1643845324864,0.9332,2683.8,2682.6,0.940272]
[1643845324865,3.7,2683.7,2682.6,0.940272]
[1643845325068,0.6332,2683.6,2682.6,0.940272]
[1643845325270,0.447,2683.6,2682.6,0.940272]
[1643845325664,0.1862,2683.5,2682.6,0.940272]
[1643845326065,0.447,2683.8,2682.6,0.940272]
[1643845326272,0.1862,2683.7,2682.6,1.86226619]
[1643845326465,0.1862,2683.7,2682.7,0.35233272]
[1643845327065,0.1862,2683.7,2682.7,0.65233272]
[1643845327269,0.1862,2683.7,2682.7,0.3]
[1643845327466,0.1862,2683.7,2682.7,1.3]
[1643845327717,0.1862,2683.7,2682.7,0.3]
[1643845327915,0.1862,2683.9,2682.7,1.0]
[1643845328212,0.1862,2683.9,2682.6,2.46226619]
[1643845328417,0.1862,2683.9,2683.5,0.84113487]
[1643845328614,0.1862,2684.3,2683.5,1.14113487]
[1643845328817,4.6497,2684.7,2683.5,1.44113487]
[1643845329121,4.6497,2684.7,2683.5,0.3]
[1643845329314,4.6497,2684.7,2683.3,0.3]
[1643845329516,4.6497,2684.7,2682.7,0.65745]
[1643845329517,4.6497,2684.7,2682.9,1.86294]
[1643845329712,4.6497,2684.7,2682.9,2.16294]
[1643845329713,0.01246874,2684.3,2682.9,2.16294]
[1643845329917,0.01246874,2684.3,2683.0,0.3]
[1643845330112,0.3889676,2684.2,2683.1,0.70470587]
[1643845330512,0.01246874,2684.3,2683.1,0.70470587]
[1643845330715,0.01246874,2684.3,2683.1,1.00470587]
[1643845330913,0.1862,2684.5,2683.1,1.00470587]
[1643845331115,0.1862,2684.6,2683.2,0.00188164]
[1643845331316,0.1862,2684.6,2683.2,0.93334164]
[1643845331767,0.1862,2684.6,2683.6,0.69906302]
[1643845331768,0.37121891,2684.4,2683.6,0.69906302]
[1643845331976,2.36980609,2684.3,2683.3,0.00188164]
[1643845332169,2.56873552,2684.3,2683.3,0.00188164]
[1643845332369,0.447,2684.2,2683.1,0.00188164]
[1643845332571,0.1862,2684.1,2683.1,0.00188164]
[1643845332967,0.1862,2684.1,2683.2,0.85506162]
[1643845333568,0.1862,2684.2,2683.3,0.00188164]
[1643845334168,0.1862,2684.2,2682.8,2.14632107]
[1643845334367,0.1862,2684.3,2682.8,0.6]
[1643845334567,0.1862,2684.3,2683.2,0.37096446]
[1643845334767,0.447,2684.5,2683.2,0.67096446]
[1643845334768,0.1862,2684.4,2683.2,0.67096446]
[1643845334968,0.1862,2684.4,2683.8,0.81648301]
[1643845335814,0.1862,2684.4,2683.3,0.00188164]
[1643845336220,0.1862,2684.4,2683.3,2.23283716]
[1643845336419,4.4635,2684.7,2683.5,0.93134]
[1643845336420,0.1862,2684.6,2683.5,0.93134]
[1643845336617,0.1862,2684.6,2683.6,0.00188164]
[1643845336817,4.4635,2684.7,2683.6,0.00188164]
[1643845337216,4.4635,2684.7,2684.2,0.80391937]
[1643845337616,4.4635,2684.7,2684.2,0.3]
[1643845337819,4.4635,2684.7,2683.7,0.00188164]
[1643845338417,4.4635,2684.7,2684.3,0.39689595]
[1643845338618,4.4635,2684.7,2683.8,0.93125]
[1643845338619,4.4635,2684.7,2683.9,2.58163297]
[1643845338817,4.4635,2684.7,2684.0,1.0]
[1643845339363,4.4635,2684.7,2684.4,0.86198415]
[1643845339563,4.4635,2684.7,2684.4,1.16198415]
[1643845339764,4.4635,2684.7,2684.4,1.86152761]
[1643845340163,0.1862,2685.0,2684.4,0.86198415]
[1643845340369,0.1862,2685.0,2684.2,0.41174823]
[1643845340564,0.1862,2685.2,2684.2,0.41174823]
[1643845340768,0.1862,2685.2,2684.4,0.69237463]
[1643845340966,0.1862,2685.2,2684.4,0.99237463]
[1643845341171,0.1862,2685.2,2684.5,0.93115]
[1643845341373,4.6857,2685.3,2684.5,1.23115]
[1643845341565,4.6857,2685.3,2684.4,2.29237463]
[1643845342267,4.6857,2685.3,2685.1,0.74857441]
[1643845342465,3.7086,2685.7,2685.1,0.74857441]
[1643845342719,3.7086,2685.7,2684.4,1.6]
[1643845342720,0.1862,2685.7,2684.4,1.6]
[1643845342921,0.1862,2685.7,2684.5,0.01498699]
[1643845343121,3.7041,2685.8,2684.4,1.6]
[1643845343419,0.1862,2685.7,2684.7,1.862]
[1643845343616,0.1862,2685.7,2684.9,0.87041649]
[1643845344018,0.1862,2685.7,2684.9,1.17041649]
[1643845344220,0.1862,2685.7,2685.0,0.931]
[1643845344620,0.186,2685.9,2685.0,0.931]
[1643845344819,1.57782987,2685.8,2685.0,0.931]
[1643845345020,0.186,2685.7,2684.9,1.17041649]
[1643845345423,0.186,2685.9,2684.9,1.17041649]
[1643845345618,1.57781548,2685.8,2684.9,1.17041649]
[1643845345818,0.186,2685.7,2684.9,1.17041649]
[1643845346227,0.186,2685.9,2684.9,1.17041649]
[1643845346481,1.57781535,2685.8,2684.9,1.17041649]
[1643845346682,0.186,2685.7,2684.9,0.3]
[1643845346882,0.186,2685.7,2684.8,1.6]
[1643845346883,1.57781535,2685.6,2684.8,1.6]
[1643845347084,1.57781535,2685.6,2684.8,0.3]
[1643845347285,1.87781535,2685.5,2684.3,0.27639994]
[1643845347482,1.59018788,2685.4,2684.3,0.27639994]
[1643845347684,4.54766146,2685.3,2684.3,0.27639994]
[1643845347882,1.57781535,2685.2,2684.4,0.79325439]
[1643845348088,1.57781535,2685.2,2684.6,0.40947902]
[1643845348482,0.1862,2685.3,2684.6,0.40947902]
[1643845348682,1.57803469,2685.2,2684.6,0.40947902]
[1643845348986,0.01278638,2684.9,2683.0,2.79341]
[1643845349285,1.57813941,2684.8,2683.4,0.93148]
[1643845349483,1.57813941,2684.8,2682.8,0.01201212]
[1643845349484,4.5265,2684.7,2682.9,1.86312]
[1643845349683,1.76433941,2684.6,2682.9,1.86312]
[1643845349884,0.25936975,2684.4,2683.2,0.4335794]
[1643845350087,1.76411941,2684.5,2683.2,0.4335794]
[1643845350088,0.18598,2684.5,2683.2,0.4335794]
[1643845350318,1.6332,2684.6,2683.2,0.4335794]
[1643845350319,0.6332,2684.6,2683.2,0.4335794]
[1643845350723,0.6332,2684.6,2683.2,1.3651294]
[1643845351118,0.6332,2684.6,2683.2,1.6651294]
[1643845351320,0.6332,2684.6,2683.6,0.86223118]
[1643845351523,1.5784209,2684.5,2683.6,1.16223118]
[1643845351726,0.1862,2684.4,2683.3,1.0]
[1643845351919,0.1862,2684.4,2683.2,2.6651294]
[1643845352119,0.1862,2684.5,2683.2,1.3651294]
[1643845352320,1.57846323,2684.4,2683.2,1.3651294]
[1643845352519,0.1862,2684.5,2683.2,1.3651294]
[1643845352719,0.1862,2684.5,2683.3,0.71826135]
[1643845353327,0.1862,2684.5,2683.3,1.01826135]
[1643845353722,1.57844563,2684.4,2683.3,1.01826135]
[1643845353985,0.1862,2684.5,2683.3,1.01826135]
[1643845354284,1.57844274,2684.4,2683.3,0.3]
[1643845354487,1.57844274,2684.4,2683.2,1.3651294]
[1643845354488,0.1862,2684.3,2683.2,0.7335794]
[1643845354682,1.578516,2684.2,2683.2,0.3]
[1643845354882,1.578516,2684.2,2683.0,0.3]
[1643845355081,1.1862,2684.4,2682.9,2.90753803]
[1643845355283,1.59146202,2684.3,2683.0,1.0]
[1643845355483,1.76472524,2684.2,2682.9,2.90753803]
[1643845355688,1.76472524,2684.2,2682.9,0.27639994]
[1643845355689,0.32080684,2684.0,2682.9,0.27639994]
[1643845355888,1.76472524,2683.9,2682.9,0.27639994]
[1643845356084,1.57852524,2683.8,2682.9,0.27639994]
[1643845356284,1.48598,2684.1,2683.0,0.00188103]
[1643845356285,1.1862,2684.0,2683.0,0.00188103]
[1643845356488,1.57863641,2683.9,2683.0,0.00188103]
[1643845356686,0.1862,2684.0,2683.0,2.11122373]
[1643845356986,4.0748,2684.1,2683.1,0.00188103]
[1643845357285,1.57854471,2684.0,2683.1,0.00188103]
[1643845357718,1.57854471,2684.0,2683.1,0.30188103]
[1643845357915,1.57854471,2684.0,2683.2,0.00188103]
[1643845358115,1.57854471,2684.0,2683.2,0.71705827]
[1643845358316,1.57854471,2684.0,2683.2,1.01705827]
[1643845358620,1.57854471,2684.0,2683.3,0.00188103]
[1643845358917,2.57854471,2684.0,2683.3,0.00188103]
[1643845359219,1.76474471,2683.9,2683.0,0.00188103]
[1643845359415,1.57854471,2683.8,2683.0,0.00188103]
[1643845359817,0.89217812,2683.7,2682.7,0.00188103]
[1643845360017,2.47072283,2683.7,2682.7,0.00188103]
[1643845360217,1.57854471,2683.6,2682.7,0.00188103]
[1643845360419,0.1862,2683.5,2682.7,0.00188103]
[1643845360618,1.57854471,2683.4,2682.6,0.93650995]
[1643845360818,1.57854471,2683.4,2682.7,0.0018812]
[1643845361019,2.28452283,2683.4,2682.6,0.88839115]
[1643845361225,1.57854471,2683.3,2682.6,0.88839115]
[1643845361472,1.57854471,2683.2,2682.6,0.88839115]
[1643845361668,1.57854471,2683.1,2682.6,0.88839115]
[1643845361867,1.57854471,2683.0,2682.6,0.88839115]
[1643845362073,1.57854471,2682.9,2682.6,0.88839115]
[1643845362267,0.1862,2683.5,2682.6,0.88839115]
[1643845362566,1.57893817,2683.4,2682.6,0.88839115]
[1643845367425,1.57893817,2683.4,2683.0,0.76503291]
[1643845367627,4.83518,2683.6,2683.0,0.76503291]
[1643845367628,4.6492,2683.6,2683.0,0.76503291]
[1643845367823,1.57889659,2683.5,2683.0,0.76503291]
[1643845368627,1.57889659,2683.5,2682.6,1.18839115]
[1643845369268,1.57889659,2683.5,2682.8,0.93166]
[1643845369766,1.57889659,2683.5,2683.2,0.68068233]
[1643845369968,1.57889659,2683.5,2682.8,0.93166]
[1643845371466,1.57889659,2683.5,2683.0,0.68109755]
[1643845372068,4.6492,2683.6,2683.0,0.68109755]
[1643845372266,1.57893719,2683.5,2682.8,0.93166]
[1643845373118,1.57893719,2683.5,2682.6,2.18839115]
[1643845373416,1.57893719,2683.5,2682.9,0.71606132]
[1643845373815,1.57893719,2683.5,2682.6,2.18839115]
[1643845374818,4.6492,2683.6,2682.8,0.9449854]
[1643845375918,4.6492,2683.6,2682.6,0.88839115]
[1643845376119,4.6492,2683.6,2682.7,0.00184294]
[1643845377170,4.6492,2683.6,2682.7,2.13070455]
[1643845377472,4.6492,2683.6,2683.0,1.86306]
[1643845377669,4.6492,2683.6,2683.0,1.87451713]
[1643845377870,4.6492,2683.6,2683.0,2.16306]
[1643845378270,4.6492,2683.6,2683.5,1.22986407]
[1643845378470,3.8886,2684.1,2683.5,1.52986407]
[1643845378873,4.3275,2684.3,2683.5,1.52986407]
[1643845379071,1.57877953,2684.2,2683.5,1.52986407]
[1643845379975,4.3275,2684.3,2683.5,1.52986407]
[1643845380219,4.3275,2684.3,2683.5,1.53170701]
[1643845381225,0.1862,2684.8,2683.6,2.64248544]
[1643845381424,4.7397,2684.9,2684.8,0.92010655]
[1643845381621,4.7397,2684.9,2683.9,1.48967]
[1643845381622,0.01054059,2684.6,2684.4,0.2484]
[1643845381825,4.7004,2685.2,2684.8,0.3731281]
[1643845382022,1.57825906,2685.1,2684.8,0.3731281]
[1643845382221,0.1862,2685.5,2684.8,0.3731281]
[1643845382422,1.57824997,2685.4,2684.8,0.3]
[1643845382623,1.57824997,2685.4,2684.5,0.95177912]
[1643845382821,1.57824997,2685.4,2684.5,3.11377912]
[1643845383222,1.57824997,2685.4,2684.6,1.0]
[1643845383821,2.51883148,2685.3,2684.5,1.862]
[1643845384087,2.51883148,2685.3,2684.2,1.13819997]
[1643845384088,0.01233529,2685.1,2684.2,0.13819997]
[1643845384282,0.01233529,2685.1,2683.6,0.00184294]
[1643845384283,1.76444997,2685.0,2683.6,0.00184294]
[1643845384485,4.30064827,2684.9,2683.6,0.00184294]
[1643845384682,1.57824997,2684.8,2683.6,0.00184294]
[1643845384881,1.78844959,2684.8,2683.7,0.93139]
[1643845385082,1.57824997,2684.7,2683.8,0.00184294]
[1643845385482,3.91227295,2684.7,2683.8,0.00184294]
[1643845385684,1.76444997,2684.6,2683.6,0.00184294]
[1643845385882,1.57824997,2684.5,2683.6,0.00184294]
[1643845386482,4.6966,2684.4,2683.6,0.00184294]
[1643845386683,1.57824997,2684.3,2683.6,0.00184294]
[1643845386883,1.57824997,2684.3,2683.7,0.41994489]
[1643845387286,4.6966,2684.4,2683.7,1.35131489]
[1643845387484,4.6966,2684.4,2683.7,1.35315783]
[1643845387714,4.6966,2684.4,2683.7,1.65315783]
[1643845388119,8.16001529,2685.1,2683.8,2.70065911]
[1643845388120,0.1862,2685.0,2683.8,2.70065911]
[1643845388319,9.3272,2685.1,2684.4,0.93116]
[1643845388320,1.57822593,2684.9,2684.4,0.93116]
[1643845388517,1.57822593,2684.8,2684.4,0.93116]
[1643845388717,4.5777,2685.1,2684.4,1.23116]
[1643845388921,1.57817497,2685.0,2684.4,1.23116]
[1643845389921,1.57817497,2685.0,2684.7,1.21923744]
[1643845390121,1.57817497,2685.0,2684.7,2.45029744]
[1643845390320,0.1862,2685.5,2684.7,2.45029744]
[1643845390520,1.57808275,2685.4,2684.7,2.45029744]
[1643845391975,1.57808275,2685.3,2684.7,2.45029744]
[1643845392174,1.57808275,2685.2,2684.7,2.45029744]
[1643845392379,5.5519,2685.6,2684.7,2.45029744]
[1643845392380,1.57808275,2685.1,2684.7,2.45029744]
[1643845392587,1.57808275,2685.0,2684.5,1.86205]
[1643845392777,7.85737945,2685.6,2684.2,2.16222]
[1643845392778,1.57808275,2684.9,2684.2,2.16222]
[1643845392978,0.1862,2685.5,2683.8,0.00184294]
[1643845392979,1.57808275,2684.8,2683.8,0.00184294]
[1643845393178,1.57808275,2684.7,2683.8,0.00184294]
[1643845393378,0.70597812,2685.2,2683.5,0.01441383]
[1643845393379,1.57808275,2684.6,2683.5,0.01441383]
[1643845393576,3.90909482,2685.0,2684.3,0.43331623]
[1643845393883,1.57824711,2684.9,2684.2,0.94295629]
[1643845394076,1.57824711,2684.8,2684.2,1.87418629]
[1643845394277,1.57824711,2684.7,2684.2,2.17418629]
[1643845394475,1.57824711,2684.6,2684.2,2.17418629]
[1643845394675,1.3953,2685.2,2684.2,2.17418629]
[1643845394983,1.57814854,2685.1,2684.2,2.17418629]
[1643845395223,1.57814854,2685.1,2684.4,0.93116]
[1643845395418,1.57814854,2685.1,2684.6,0.41265104]
[1643845395617,1.57814854,2685.1,2684.3,1.8622]
[1643845395818,1.57814854,2685.1,2684.3,2.8622]
[1643845396019,0.89217812,2685.5,2684.3,1.8622]
[1643845396020,1.57814854,2685.0,2684.3,1.8622]
[1643845396220,1.57814854,2684.9,2684.2,0.3]
[1643845396519,4.4313865,2685.3,2684.2,0.3]
[1643845396520,1.57814854,2684.8,2684.2,0.3]
[1643845396718,1.57814854,2684.7,2684.5,0.4435368]
[1643845396918,1.57814854,2684.6,2684.5,1.3407145]
[1643845397222,0.1862,2685.2,2684.5,1.6407145]
[1643845397421,1.57800382,2685.1,2684.5,1.6407145]
[1643845397721,1.57800382,2685.0,2684.5,1.6407145]
[1643845397919,0.1862,2685.5,2684.5,0.7435368]
[1643845398120,1.57784219,2685.4,2684.8,0.93104]
[1643845398320,0.70597812,2686.0,2684.9,0.537]
[1643845398321,0.1862,2686.0,2684.9,0.537]
[1643845398517,0.149135,2686.1,2684.9,0.537]
[1643845398820,1.57773347,2686.0,2684.9,0.837]
[1643845399282,1.57773347,2686.0,2685.0,1.4891243]
[1643845399484,1.57773347,2686.0,2685.8,0.44736887]
[1643845399782,1.57773347,2686.0,2685.5,1.3644]
[1643845400185,1.57773347,2686.0,2685.9,0.93066]
[1643845400684,1.57773347,2686.0,2685.9,1.23066]
[1643845401282,1.57773347,2686.0,2685.9,0.93066]
[1643845401682,1.57773347,2686.0,2685.8,0.3]
[1643845401884,1.57773347,2686.0,2685.7,1.45003049]
[1643845402731,1.57773347,2686.0,2685.7,1.81753125]
[1643845405824,1.57773347,2686.0,2685.7,2.11753125]
[1643845406022,0.149135,2686.1,2685.7,2.11753125]
[1643845406870,0.149135,2686.1,2685.8,0.86966466]
[1643845407272,0.149135,2686.1,2685.8,3.74188045]
[1643845407472,0.149135,2686.1,2685.9,3.32816]
[1643845407670,0.149135,2686.5,2685.9,4.64191331]
[1643845408282,0.149135,2686.5,2686.4,2.10841432]
[1643845408473,0.149135,2686.5,2686.4,1.27758305]
[1643845409072,2.899135,2686.5,2686.4,0.93036]
[1643845409473,0.149135,2686.5,2686.4,0.93036]
[1643845410076,0.149135,2686.5,2686.4,1.32832947]
[1643845410519,0.149135,2686.5,2686.4,1.62832947]
[1643845411120,0.149135,2686.5,2686.4,2.62832947]
[1643845411320,0.149135,2686.5,2686.4,3.16532947]
[1643845411523,0.149135,2686.5,2686.4,0.93036]
[1643845411720,0.149135,2686.5,2686.3,1.86071]
[1643845412523,1.5773959,2686.4,2686.3,0.37130543]
[1643845412724,0.149135,2686.5,2686.1,3.30168401]
[1643845413128,0.149135,2686.5,2686.1,2.46099]
[1643845413994,0.149135,2686.5,2686.3,0.44869497]
[1643845414397,0.149135,2686.5,2686.3,1.13622632]
[1643845414594,0.149135,2686.5,2686.3,0.44869497]
[1643845414995,0.89197812,2687.2,2686.3,0.44869497]
[1643845415197,1.57726061,2687.1,2686.4,0.93049]
[1643845415594,1.57726061,2687.0,2686.5,0.3]
[1643845415795,1.57726061,2686.9,2686.5,0.3]
[1643845415995,0.186,2687.4,2686.7,0.38354224]
[1643845416202,1.57711099,2687.3,2686.7,0.38354224]
[1643845416596,1.76311099,2687.2,2686.7,0.38354224]
[1643845416796,0.148983,2687.0,2686.7,0.38354224]